[Event "CCCSA IM Norm C 2019"]
[Site "Charlotte"]
[Date "2019.06.07"]
[Round "3.1"]
[White "Turgut, Aydin"]
[Black "Adamson, Robby"]
[Result "1-0"]
[ECO "C55"]
[WhiteElo "2286"]
[BlackElo "2238"]
[Annotator "RC"]
[PlyCount "83"]
[EventDate "2019.06.05"]
[EventType "tourn"]
[EventCountry "USA"]
[SourceTitle "playchess.com"]
[Source "ChessBase"]
[SourceQuality "1"]
[TimeControl "5400+30"]

1. e4 {[%emt 1:30:30]} e5 {[%emt 1:30:30]} 2. Nf3 {[%emt 0:00:30]} Nc6 {[%emt 0:00:30]} 3. Bc4 {[%emt 0:00:30]} Nf6 {[%emt 0:00:30]} 4. d3 {[%emt 0:00:30]} h6 {[%emt 0:00:30]} 5. O-O {[%emt 0:00:30]} d6 {[%emt 0:00:30]} 6. c3 {[%emt 0:00:30]} g6 {[%emt 0:00:30]} 7. Re1 {[%emt 0:00:30]} Bg7 {[%emt 0:00:30]} 8. Nbd2 {[%emt 0:00:30]} O-O {[%emt 0:00:30]} 9. Nf1 {[%emt 0:00:30]} d5 {[%emt 0:00:30]} 10. exd5 {[%emt 0:00:30]} Nxd5 {[%emt 0:00:30]} 11. Bb5 {[%emt 0:00:30]} Nde7 {[%emt 0:00:30]} 12. Ng3 {[%emt 0:00:30]} Kh7 {[%emt 0:00:30]} 13. Be3 {[%emt 0:00:30]} a6 {[%emt 0:00:30]} 14. Ba4 {[%emt 0:00:30]} b6 {[%emt 0:00:30]} 15. Qe2 {[%emt 0:00:30]} f5 {[%emt 0:00:30]} 16. Bd2 {[%emt 0:00:30]} Qd6 {[%emt 0:00:30]} 17. c4 {[%emt 0:00:30]} f4 {[%emt 0:00:30]} 18. Ne4 {[%emt 0:00:30]} Qd8 {[%emt 0:00:30]} 19. Bc3 {[%emt 0:00:30]} Rb8 {[%emt 0:00:30]} 20. Ned2 {[%emt 0:00:30]} Rf5 {[%emt 0:00:30]} 21. Bc2 {[%emt 0:00:30]} Bb7 {[%emt 0:00:30]} 22. Nb3 {[%emt 0:00:30]} Rh5 {[%emt 0:00:30]} 23. d4 {[%emt 0:00:30]} exd4 {[%emt 0:00:30]} 24. Nfxd4 {[%emt 0:00:30]} Nxd4 {[%emt 0:00:30]} 25. Bxd4 {[%emt 0:00:30]} Nf5 {[%emt 0:00:30]} 26. Bxf5 {[%emt 0:00:30]} Rxf5 {[%emt 0:00:30]} 27. Qe7 {[%emt 0:00:30]} Qf8 {[%emt 0:00:30]} 28. Qxc7 {[%emt 0:00:30]} Rf7 {[%emt 0:00:30]} 29. Bxg7 {[%emt 0:00:30]} Rxg7 {[%emt 0:00:30]} 30. Qe5 {[%emt 0:00:30]} f3 {[%emt 0:00:30]} 31. Nd4 {[%emt 0:00:30]} Rf7 {[%emt 0:00:30]} 32. Re3 {[%emt 0:00:30]} Rc8 {[%emt 0:00:30]} 33. b3 {[%emt 0:00:30]} fxg2 {[%emt 0:00:30]} 34. Ne6 {[%emt 0:00:30]} Qe7 35. Rh3 {[%emt 0:00:30]} Rf5 {[%emt 0:01:00]} 36. Qe3 h5 {[%emt 0:00:30]} 37. Re1 {[%emt 0:01:00]} Rc6 {[%emt 0:00:30]} 38. Nd4 {[%emt 0:00:30]} Qxe3 {[%emt 0:00:30]} 39. Rhxe3 {[%emt 0:00:30]} Rf7 {[%emt 0:00:30]} 40. Nxc6 {[%emt 0:00:30]} Bxc6 {[%emt 0:00:30]} 41. Re6 {[%emt 0:00:30]} Rc7 {[%emt 0:00:30]} 42. Re7+ {[%emt 0:00:30]} 1-0

[Event "CCCSA IM Norm C 2019"]
[Site "Charlotte"]
[Date "2019.06.07"]
[Round "4.5"]
[White "Jacobson, Aaron"]
[Black "Turgut, Aydin"]
[Result "0-1"]
[ECO "C97"]
[WhiteElo "2302"]
[BlackElo "2286"]
[Annotator "RC"]
[PlyCount "58"]
[EventDate "2019.06.05"]
[EventType "tourn"]
[EventCountry "USA"]
[SourceTitle "playchess.com"]
[Source "ChessBase"]
[SourceQuality "1"]
[TimeControl "5400+30"]

1. e4 {[%emt 1:30:30]} e5 {[%emt 1:30:30]} 2. Nf3 {[%emt 0:00:30]} Nc6 {[%emt 0:00:30]} 3. Bb5 {[%emt 0:00:30]} a6 {[%emt 0:00:30]} 4. Ba4 {[%emt 0:00:30]} Nf6 {[%emt 0:00:30]} 5. O-O {[%emt 0:00:30]} Be7 {[%emt 0:00:30]} 6. Re1 {[%emt 0:00:30]} b5 {[%emt 0:00:30]} 7. Bb3 {[%emt 0:00:30]} O-O {[%emt 0:00:30]} 8. c3 {[%emt 0:00:30]} d6 {[%emt 0:00:30]} 9. h3 {[%emt 0:00:30]} Nb8 {[%emt 0:00:30]} 10. d4 {[%emt 0:00:30]} Nbd7 {[%emt 0:00:30]} 11. Nbd2 {[%emt 0:00:30]} c5 {[%emt 0:00:30]} 12. d5 {[%emt 0:00:30]} c4 {[%emt 0:00:30]} 13. Bc2 {[%emt 0:00:30]} Qc7 {[%emt 0:00:30]} 14. Nf1 {[%emt 0:00:30]} Nc5 {[%emt 0:00:30]} 15. b4 {[%emt 0:00:30]} cxb3 {[%emt 0:00:30]} 16. axb3 {[%emt 0:00:30]} Bd7 {[%emt 0:00:30]} 17. Bd2 {[%emt 0:00:30]} a5 {[%emt 0:00:30]} 18. Qe2 {[%emt 0:00:30]} Rfc8 {[%emt 0:00:30]} 19. Rec1 {[%emt 0:00:30]} a4 {[%emt 0:00:30]} 20. b4 {[%emt 0:00:30]} Nb3 {[%emt 0:00:30]} 21. Bxb3 {[%emt 0:00:30]} axb3 {[%emt 0:00:30]} 22. Rcb1 {[%emt 0:00:30]} Qc4 {[%emt 0:00:30]} 23. Qxc4 {[%emt 0:00:30]} bxc4 {[%emt 0:00:30]} 24. Bg5 {[%emt 0:00:30]} Nxe4 {[%emt 0:00:30]} 25. Rxa8 {[%emt 0:00:30]} Rxa8 {[%emt 0:00:30]} 26. Bxe7 {[%emt 0:00:30]} Nxc3 {[%emt 0:00:30]} 27. Re1 {[%emt 0:00:30]} b2 {[%emt 0:00:30]} 28. N3d2 {[%emt 0:00:30]} Ra1 {[%emt 0:00:30]} 29. Re3 {[%emt 0:00:30]} Nxd5 {[%emt 0:00:30]} 0-1

[Event "CCCSA IM Norm C 2019"]
[Site "Charlotte"]
[Date "2019.06.08"]
[Round "5.1"]
[White "Lorne, Ras Malaku"]
[Black "Adamson, Robby"]
[Result "0-1"]
[ECO "A09"]
[WhiteElo "2159"]
[BlackElo "2238"]
[Annotator "RC"]
[PlyCount "68"]
[EventDate "2019.06.05"]
[EventType "tourn"]
[EventCountry "USA"]
[SourceTitle "playchess.com"]
[Source "ChessBase"]
[SourceQuality "1"]
[TimeControl "5400+30"]

1. Nf3 {[%emt 1:30:30]} d5 {[%emt 1:30:30]} 2. c4 {[%emt 0:00:30]} d4 {[%emt 0:00:30]} 3. b4 {[%emt 0:00:30]} Bg4 {[%emt 0:00:30]} 4. Qa4+ {[%emt 0:00:30]} c6 {[%emt 0:00:30]} 5. Bb2 {[%emt 0:00:30]} Bxf3 {[%emt 0:00:30]} 6. gxf3 {[%emt 0:00:30]} e5 {[%emt 0:00:30]} 7. Na3 {[%emt 0:00:30]} Nd7 {[%emt 0:00:30]} 8. Bh3 {[%emt 0:00:30]} Ngf6 {[%emt 0:00:30]} 9. d3 {[%emt 0:00:30]} a5 {[%emt 0:00:30]} 10. Bxd7+ {[%emt 0:00:30]} Nxd7 {[%emt 0:00:30]} 11. b5 {[%emt 0:00:30]} Bb4+ {[%emt 0:00:30]} 12. Kf1 {[%emt 0:00:30]} Nc5 {[%emt 0:00:30]} 13. Qd1 {[%emt 0:00:30]} Qh4 {[%emt 0:00:30]} 14. h3 {[%emt 0:00:30]} Ne6 {[%emt 0:00:30]} 15. bxc6 {[%emt 0:00:30]} bxc6 {[%emt 0:00:30]} 16. Nc2 {[%emt 0:00:30]} Be7 {[%emt 0:00:30]} 17. Bc1 {[%emt 0:00:30]} O-O {[%emt 0:00:30]} 18. Rb1 {[%emt 0:00:30]} Bg5 {[%emt 0:00:30]} 19. Bxg5 {[%emt 0:00:30]} Nxg5 {[%emt 0:00:30]} 20. Rb6 Rac8 {[%emt 0:00:30]} 21. Qd2 {[%emt 0:01:00]} Nxh3 {[%emt 0:00:30]} 22. e3 {[%emt 0:00:30]} Qd8 {[%emt 0:00:30]} 23. Qxa5 {[%emt 0:00:30]} dxe3 {[%emt 0:00:30]} 24. fxe3 {[%emt 0:00:30]} Qxd3+ {[%emt 0:00:30]} 25. Kg2 {[%emt 0:00:30]} Ng5 {[%emt 0:00:30]} 26. Ne1 {[%emt 0:00:30]} Qe2+ {[%emt 0:00:30]} 27. Kg3 {[%emt 0:00:30]} Qxe3 {[%emt 0:00:30]} 28. Rb2 {[%emt 0:00:30]} Rfe8 {[%emt 0:00:30]} 29. Rh4 {[%emt 0:00:30]} Rcd8 {[%emt 0:00:30]} 30. Rf2 {[%emt 0:00:30]} h6 {[%emt 0:00:30]} 31. Nc2 {[%emt 0:00:30]} Qd3 {[%emt 0:00:30]} 32. Nb4 {[%emt 0:00:30]} Qd6 {[%emt 0:00:30]} 33. c5 {[%emt 0:00:30]} Qg6 {[%emt 0:00:30]} 34. Rg4 {[%emt 0:00:30]} Rd4 {[%emt 0:00:30]} 0-1

[Event "CCCSA IM Norm C 2019"]
[Site "Charlotte"]
[Date "2019.06.08"]
[Round "5.3"]
[White "Turgut, Aydin"]
[Black "Bregadze, Levan"]
[Result "1/2-1/2"]
[ECO "B64"]
[WhiteElo "2286"]
[BlackElo "2462"]
[Annotator "RC"]
[PlyCount "87"]
[EventDate "2019.06.05"]
[EventType "tourn"]
[EventCountry "USA"]
[SourceTitle "playchess.com"]
[Source "ChessBase"]
[SourceQuality "1"]
[TimeControl "5400+30"]

1. e4 {[%emt 1:30:30]} c5 {[%emt 1:30:30]} 2. Nf3 {[%emt 0:00:30]} d6 {[%emt 0:00:30]} 3. d4 {[%emt 0:00:30]} cxd4 {[%emt 0:00:30]} 4. Nxd4 {[%emt 0:00:30]} Nf6 {[%emt 0:00:30]} 5. Nc3 {[%emt 0:00:30]} Nc6 {[%emt 0:00:30]} 6. Bg5 {[%emt 0:00:30]} e6 {[%emt 0:00:30]} 7. Qd2 {[%emt 0:00:30]} Be7 {[%emt 0:00:30]} 8. O-O-O {[%emt 0:00:30]} O-O {[%emt 0:00:30]} 9. f4 {[%emt 0:00:30]} Bd7 {[%emt 0:00:30]} 10. Ndb5 {[%emt 0:00:30]} e5 {[%emt 0:00:30]} 11. Bxf6 {[%emt 0:00:30]} Bxf6 {[%emt 0:00:30]} 12. Qxd6 {[%emt 0:00:30]} Bg4 {[%emt 0:00:30]} 13. Qxd8 {[%emt 0:00:30]} Bxd8 {[%emt 0:00:30]} 14. Be2 {[%emt 0:00:30]} Bxe2 {[%emt 0:00:30]} 15. Nxe2 {[%emt 0:00:30]} exf4 {[%emt 0:00:30]} 16. Nxf4 {[%emt 0:00:30]} Bg5 {[%emt 0:00:30]} 17. g3 {[%emt 0:00:30]} Rae8 {[%emt 0:00:30]} 18. Nd6 {[%emt 0:00:30]} Re7 {[%emt 0:00:30]} 19. h4 {[%emt 0:00:30]} Bh6 {[%emt 0:00:30]} 20. Kb1 {[%emt 0:00:30]} b6 {[%emt 0:00:30]} 21. Nd5 {[%emt 0:00:30]} Re6 {[%emt 0:00:30]} 22. Nf5 {[%emt 0:00:30]} Ne5 {[%emt 0:00:30]} 23. Nc7 {[%emt 0:00:30]} Rf6 {[%emt 0:00:30]} 24. Nd5 {[%emt 0:00:30]} Re6 {[%emt 0:00:30]} 25. Nc7 {[%emt 0:00:30]} Rf6 {[%emt 0:00:30]} 26. Rd5 {[%emt 0:00:30]} Ng4 {[%emt 0:00:30]} 27. Rhd1 {[%emt 0:00:30]} g6 {[%emt 0:00:30]} 28. Nxh6+ {[%emt 0:00:30]} Nxh6 {[%emt 0:00:30]} 29. Rd6 {[%emt 0:00:30]} Ng4 {[%emt 0:00:30]} 30. Rxf6 {[%emt 0:00:30]} Nxf6 {[%emt 0:00:30]} 31. Rd4 {[%emt 0:00:30]} h5 {[%emt 0:00:30]} 32. a4 {[%emt 0:00:30]} Rc8 {[%emt 0:00:30]} 33. Nd5 {[%emt 0:00:30]} Kg7 {[%emt 0:00:30]} 34. Kc1 {[%emt 0:00:30]} Ng4 {[%emt 0:00:30]} 35. c3 {[%emt 0:00:30]} Ne5 {[%emt 0:00:30]} 36. Kc2 {[%emt 0:00:30]} Re8 {[%emt 0:00:30]} 37. Nc7 {[%emt 0:00:30]} Re7 {[%emt 0:00:30]} 38. Nd5 {[%emt 0:00:30]} Re8 {[%emt 0:00:30]} 39. Nc7 {[%emt 0:00:30]} Re7 {[%emt 0:00:30]} 40. b4 {[%emt 0:00:30]} Re8 41. Nd5 Nf3 {[%emt 0:01:00]} 42. Rc4 Ne5 43. Rc7 Nf3 44. Rc4 1/2-1/2

[Event "CCCSA IM Norm C 2019"]
[Site "Charlotte"]
[Date "2019.06.08"]
[Round "6.1"]
[White "Adamson, Robby"]
[Black "Wang, Jason"]
[Result "1/2-1/2"]
[ECO "B41"]
[WhiteElo "2238"]
[BlackElo "2285"]
[Annotator "NA"]
[PlyCount "68"]
[EventDate "2019.06.05"]
[EventType "tourn"]
[EventCountry "USA"]
[SourceTitle "playchess.com"]
[Source "ChessBase"]
[SourceQuality "1"]
[TimeControl "5400+30"]

1. e4 {[%emt 1:30:30]} c5 {[%emt 1:30:30]} 2. Nf3 {[%emt 0:00:30]} e6 {[%emt 0:00:30]} 3. d4 {[%emt 0:00:30]} cxd4 {[%emt 0:00:30]} 4. Nxd4 {[%emt 0:00:30]} a6 {[%emt 0:00:30]} 5. c4 {[%emt 0:00:30]} Nf6 {[%emt 0:00:30]} 6. Nc3 {[%emt 0:00:30]} Bb4 {[%emt 0:00:30]} 7. Qd3 {[%emt 0:00:30]} O-O {[%emt 0:00:30]} 8. e5 {[%emt 0:00:30]} Ne8 {[%emt 0:00:30]} 9. Bf4 {[%emt 0:00:30]} d6 {[%emt 0:00:30]} 10. Nc2 {[%emt 0:00:30]} Bxc3+ {[%emt 0:00:30]} 11. Qxc3 {[%emt 0:00:30]} dxe5 {[%emt 0:00:30]} 12. Rd1 {[%emt 0:00:30]} Qe7 {[%emt 0:00:30]} 13. Bxe5 {[%emt 0:00:30]} f6 {[%emt 0:00:30]} 14. Bg3 {[%emt 0:00:30]} e5 {[%emt 0:00:30]} 15. Be2 {[%emt 0:00:30]} Be6 {[%emt 0:00:30]} 16. O-O {[%emt 0:00:30]} Nc6 {[%emt 0:00:30]} 17. f3 {[%emt 0:00:30]} Nd6 {[%emt 0:00:30]} 18. Bf2 {[%emt 0:00:30]} Rfc8 {[%emt 0:00:30]} 19. b3 {[%emt 0:00:30]} b5 {[%emt 0:00:30]} 20. c5 {[%emt 0:00:30]} Nf7 {[%emt 0:00:30]} 21. Rd2 {[%emt 0:00:30]} Qb7 {[%emt 0:00:30]} 22. Qe3 {[%emt 0:00:30]} Ne7 {[%emt 0:00:30]} 23. Qe4 {[%emt 0:00:30]} Bd5 {[%emt 0:00:30]} 24. Qd3 {[%emt 0:00:30]} Rd8 {[%emt 0:00:30]} 25. Qc3 {[%emt 0:00:30]} Bc6 {[%emt 0:00:30]} 26. Rfd1 {[%emt 0:00:30]} Nd5 {[%emt 0:00:30]} 27. Qa5 {[%emt 0:00:30]} Rd7 {[%emt 0:00:30]} 28. Bf1 {[%emt 0:00:30]} Rad8 {[%emt 0:00:30]} 29. Nb4 {[%emt 0:00:30]} Nxb4 {[%emt 0:00:30]} 30. Rxd7 {[%emt 0:00:30]} Rxd7 {[%emt 0:00:30]} 31. Rxd7 {[%emt 0:00:30]} Qxd7 {[%emt 0:00:30]} 32. Qxb4 {[%emt 0:00:30]} Ng5 {[%emt 0:00:30]} 33. h4 {[%emt 0:00:30]} Ne6 {[%emt 0:00:30]} 34. Qa5 {[%emt 0:00:30]} Ng5 {[%emt 0:00:30]} 1/2-1/2

[Event "CCCSA IM Norm C 2019"]
[Site "Charlotte"]
[Date "2019.06.08"]
[Round "6.2"]
[White "Martin Del Campo C., Roberto"]
[Black "Hevia Alejano, Carlos Antonio"]
[Result "1-0"]
[ECO "B28"]
[WhiteElo "2311"]
[BlackElo "2481"]
[Annotator "ChessBase"]
[PlyCount "111"]
[EventDate "2019.06.05"]
[EventType "tourn"]
[EventCountry "USA"]
[SourceTitle "playchess.com"]
[Source "ChessBase"]
[SourceQuality "1"]
[TimeControl "5400+30"]

1. e4 {[%emt 1:30:30]} c5 {[%emt 1:30:30]} 2. Nf3 {[%emt 0:00:30]} a6 {[%emt 0:00:30]} 3. c3 {[%emt 0:00:30]} e6 {[%emt 0:00:30]} 4. d4 {[%emt 0:00:30]} d5 {[%emt 0:00:30]} 5. e5 {[%emt 0:00:30]} Bd7 {[%emt 0:00:30]} 6. Bd3 {[%emt 0:00:30]} Bb5 {[%emt 0:00:30]} 7. Bxb5+ {[%emt 0:00:30]} axb5 {[%emt 0:00:30]} 8. dxc5 {[%emt 0:00:30]} Bxc5 {[%emt 0:00:30]} 9. b4 {[%emt 0:00:30]} Bb6 {[%emt 0:00:30]} 10. Na3 {[%emt 0:00:30]} f6 {[%emt 0:00:30]} 11. Nxb5 {[%emt 0:00:30]} fxe5 {[%emt 0:00:30]} 12. Nxe5 {[%emt 0:00:30]} Nf6 {[%emt 0:00:30]} 13. Qe2 {[%emt 0:00:30]} O-O {[%emt 0:00:30]} 14. O-O {[%emt 0:00:30]} Ne4 {[%emt 0:00:30]} 15. Be3 {[%emt 0:00:30]} Rf5 {[%emt 0:00:30]} 16. Nf3 {[%emt 0:00:30]} Nc6 {[%emt 0:00:30]} 17. a4 {[%emt 0:00:30]} Bc7 {[%emt 0:00:30]} 18. Nxc7 {[%emt 0:00:30]} Qxc7 {[%emt 0:00:30]} 19. Rfc1 {[%emt 0:00:30]} Raf8 {[%emt 0:00:30]} 20. Nd4 {[%emt 0:00:30]} Nxd4 {[%emt 0:00:30]} 21. cxd4 {[%emt 0:00:30]} Qd6 {[%emt 0:00:30]} 22. f3 {[%emt 0:00:30]} Rh5 {[%emt 0:00:30]} 23. g4 {[%emt 0:00:30]} Rh3 {[%emt 0:00:30]} 24. fxe4 {[%emt 0:00:30]} Rff3 {[%emt 0:00:30]} 25. e5 {[%emt 0:00:30]} Qd8 {[%emt 0:00:30]} 26. Bf2 {[%emt 0:00:30]} h5 {[%emt 0:00:30]} 27. Kh1 {[%emt 0:00:30]} hxg4 {[%emt 0:00:30]} 28. Rg1 {[%emt 0:00:30]} Qf8 {[%emt 0:00:30]} 29. Bg3 {[%emt 0:00:30]} Qxb4 {[%emt 0:00:30]} 30. Raf1 {[%emt 0:00:30]} Qxa4 {[%emt 0:00:30]} 31. Rxf3 {[%emt 0:00:30]} gxf3 {[%emt 0:00:30]} 32. Qe3 {[%emt 0:00:30]} Rh5 {[%emt 0:00:30]} 33. Bf2 {[%emt 0:00:30]} Rf5 {[%emt 0:00:30]} 34. h4 {[%emt 0:00:30]} Qd7 {[%emt 0:00:30]} 35. Rg5 {[%emt 0:00:30]} Qf7 {[%emt 0:00:30]} 36. Rxf5 {[%emt 0:00:30]} Qxf5 37. Kh2 {[%emt 0:00:30]} b5 {[%emt 0:01:00]} 38. Kg3 {[%emt 0:00:30]} b4 {[%emt 0:00:30]} 39. Qb3 {[%emt 0:00:30]} Qf8 {[%emt 0:00:30]} 40. Be1 {[%emt 0:00:30]} Qf5 {[%emt 0:00:30]} 41. Qxb4 {[%emt 0:00:30]} Qg6+ {[%emt 0:00:30]} 42. Kxf3 {[%emt 0:00:30]} Qe4+ 43. Kg3 {[%emt 0:00:30]} Qe3+ {[%emt 0:01:00]} 44. Kg2 {[%emt 0:00:30]} Qe4+ {[%emt 0:00:30]} 45. Kg1 {[%emt 0:00:30]} Qg4+ {[%emt 0:00:30]} 46. Kf1 {[%emt 0:00:30]} Qf4+ {[%emt 0:00:30]} 47. Bf2 {[%emt 0:00:30]} Qf3 {[%emt 0:00:30]} 48. Qd2 {[%emt 0:00:30]} Qh1+ {[%emt 0:00:30]} 49. Ke2 {[%emt 0:00:30]} Qe4+ {[%emt 0:00:30]} 50. Qe3 {[%emt 0:00:30]} Qc2+ {[%emt 0:00:30]} 51. Kf3 {[%emt 0:00:30]} Qd1+ {[%emt 0:00:30]} 52. Kg3 {[%emt 0:00:30]} Qc2 {[%emt 0:00:30]} 53. Qf3 {[%emt 0:00:30]} Qg6+ {[%emt 0:00:30]} 54. Qg4 {[%emt 0:00:30]} Qf7 {[%emt 0:00:30]} 55. Be3 {[%emt 0:00:30]} Kh7 {[%emt 0:00:30]} 56. h5 {[%emt 0:00:30]} 1-0

[Event "CCCSA IM Norm C 2019"]
[Site "Charlotte"]
[Date "2019.06.08"]
[Round "6.3"]
[White "Bregadze, Levan"]
[Black "Balleisen, Aaron"]
[Result "1-0"]
[ECO "A30"]
[WhiteElo "2462"]
[BlackElo "2203"]
[Annotator "ChessBase"]
[PlyCount "97"]
[EventDate "2019.06.05"]
[EventType "tourn"]
[EventCountry "USA"]
[SourceTitle "playchess.com"]
[Source "ChessBase"]
[SourceQuality "1"]
[TimeControl "5400+30"]

1. Nf3 {[%emt 1:30:30]} Nf6 {[%emt 1:30:30]} 2. c4 {[%emt 0:00:30]} b6 {[%emt 0:00:30]} 3. g3 {[%emt 0:00:30]} Bb7 {[%emt 0:00:30]} 4. Bg2 {[%emt 0:00:30]} c5 {[%emt 0:00:30]} 5. O-O {[%emt 0:00:30]} g6 {[%emt 0:00:30]} 6. d4 {[%emt 0:00:30]} cxd4 {[%emt 0:00:30]} 7. Qxd4 {[%emt 0:00:30]} Bg7 {[%emt 0:00:30]} 8. Nc3 {[%emt 0:00:30]} O-O {[%emt 0:00:30]} 9. Qh4 {[%emt 0:00:30]} Qc7 {[%emt 0:00:30]} 10. Bg5 {[%emt 0:00:30]} d6 {[%emt 0:00:30]} 11. Rac1 {[%emt 0:00:30]} Nbd7 {[%emt 0:00:30]} 12. Nd5 {[%emt 0:00:30]} Qd8 {[%emt 0:00:30]} 13. Nd4 {[%emt 0:00:30]} Rb8 {[%emt 0:00:30]} 14. Rfd1 {[%emt 0:00:30]} a6 {[%emt 0:00:30]} 15. b4 {[%emt 0:00:30]} e6 {[%emt 0:00:30]} 16. Nxf6+ {[%emt 0:00:30]} Bxf6 {[%emt 0:00:30]} 17. Bxf6 {[%emt 0:00:30]} Qxf6 {[%emt 0:00:30]} 18. Bxb7 {[%emt 0:00:30]} Qxh4 {[%emt 0:00:30]} 19. gxh4 {[%emt 0:00:30]} Rxb7 {[%emt 0:00:30]} 20. Nb3 {[%emt 0:00:30]} d5 {[%emt 0:00:30]} 21. cxd5 {[%emt 0:00:30]} exd5 {[%emt 0:00:30]} 22. Rxd5 {[%emt 0:00:30]} Nf6 {[%emt 0:00:30]} 23. Rd6 {[%emt 0:00:30]} Kg7 {[%emt 0:00:30]} 24. Rcc6 {[%emt 0:00:30]} Ne4 {[%emt 0:00:30]} 25. Rd4 {[%emt 0:00:30]} Re8 {[%emt 0:00:30]} 26. a4 {[%emt 0:00:30]} Nf6 {[%emt 0:00:30]} 27. e3 {[%emt 0:00:30]} Re5 {[%emt 0:00:30]} 28. Nd2 {[%emt 0:00:30]} Rd5 {[%emt 0:00:30]} 29. Nf3 {[%emt 0:00:30]} Rxd4 {[%emt 0:00:30]} 30. Nxd4 {[%emt 0:00:30]} Nd5 {[%emt 0:00:30]} 31. b5 {[%emt 0:00:30]} axb5 {[%emt 0:00:30]} 32. axb5 {[%emt 0:00:30]} Rd7 {[%emt 0:00:30]} 33. h5 {[%emt 0:00:30]} Rc7 {[%emt 0:00:30]} 34. Rd6 {[%emt 0:00:30]} Rc5 {[%emt 0:00:30]} 35. hxg6 {[%emt 0:00:30]} hxg6 {[%emt 0:00:30]} 36. Kg2 {[%emt 0:00:30]} Kf8 {[%emt 0:00:30]} 37. e4 {[%emt 0:00:30]} Nc3 {[%emt 0:00:30]} 38. Rxb6 {[%emt 0:00:30]} Nxe4 {[%emt 0:00:30]} 39. Rb8+ {[%emt 0:00:30]} Ke7 {[%emt 0:00:30]} 40. b6 {[%emt 0:00:30]} Nd6 {[%emt 0:00:30]} 41. Ra8 {[%emt 0:00:30]} Rc4 {[%emt 0:00:30]} 42. Nb5 {[%emt 0:00:30]} Rb4 {[%emt 0:00:30]} 43. Ra7+ {[%emt 0:00:30]} Ke6 {[%emt 0:00:30]} 44. Nxd6 {[%emt 0:00:30]} Kxd6 {[%emt 0:00:30]} 45. Rxf7 {[%emt 0:00:30]} Ke6 {[%emt 0:00:30]} 46. Rb7 {[%emt 0:00:30]} Rb3 {[%emt 0:00:30]} 47. Rb8 {[%emt 0:00:30]} Kf5 {[%emt 0:00:30]} 48. b7 {[%emt 0:00:30]} Kg4 {[%emt 0:00:30]} 49. h3+ {[%emt 0:00:30]} 1-0

[Event "CCCSA IM Norm C 2019"]
[Site "Charlotte"]
[Date "2019.06.08"]
[Round "6.4"]
[White "Jacobson, Aaron"]
[Black "Lorne, Ras Malaku"]
[Result "1-0"]
[ECO "D26"]
[WhiteElo "2302"]
[BlackElo "2159"]
[Annotator "NA"]
[PlyCount "51"]
[EventDate "2019.06.05"]
[EventType "tourn"]
[EventCountry "USA"]
[SourceTitle "playchess.com"]
[Source "ChessBase"]
[SourceQuality "1"]
[TimeControl "5400+30"]

1. Nf3 {[%emt 1:30:30]} Nf6 {[%emt 1:30:30]} 2. c4 {[%emt 0:00:30]} c5 {[%emt 0:00:30]} 3. Nc3 {[%emt 0:00:30]} Nc6 {[%emt 0:00:30]} 4. e3 {[%emt 0:00:30]} e6 {[%emt 0:00:30]} 5. d4 {[%emt 0:00:30]} d5 {[%emt 0:00:30]} 6. a3 {[%emt 0:00:30]} dxc4 {[%emt 0:00:30]} 7. Bxc4 {[%emt 0:00:30]} cxd4 {[%emt 0:00:30]} 8. exd4 {[%emt 0:00:30]} Be7 {[%emt 0:00:30]} 9. O-O {[%emt 0:00:30]} O-O {[%emt 0:00:30]} 10. Re1 {[%emt 0:00:30]} a6 {[%emt 0:00:30]} 11. Ba2 {[%emt 0:00:30]} b5 {[%emt 0:00:30]} 12. d5 {[%emt 0:00:30]} exd5 {[%emt 0:00:30]} 13. Nxd5 {[%emt 0:00:30]} Nxd5 {[%emt 0:00:30]} 14. Qxd5 {[%emt 0:00:30]} Bb7 {[%emt 0:00:30]} 15. Qh5 {[%emt 0:00:30]} Bf6 {[%emt 0:00:30]} 16. Ng5 {[%emt 0:00:30]} Bxg5 {[%emt 0:00:30]} 17. Bxg5 {[%emt 0:00:30]} Qd6 {[%emt 0:00:30]} 18. Rad1 {[%emt 0:00:30]} Qc7 {[%emt 0:00:30]} 19. Re4 {[%emt 0:00:30]} Rae8 {[%emt 0:00:30]} 20. Bf6 {[%emt 0:00:30]} Ne7 {[%emt 0:00:30]} 21. Rh4 {[%emt 0:00:30]} h6 {[%emt 0:00:30]} 22. Qxh6 {[%emt 0:00:30]} gxh6 {[%emt 0:00:30]} 23. Rg4+ {[%emt 0:00:30]} Kh7 {[%emt 0:00:30]} 24. Rg7+ {[%emt 0:00:30]} Kh8 {[%emt 0:00:30]} 25. Bb1 {[%emt 0:00:30]} Nd5 {[%emt 0:00:30]} 26. Rh7+ {[%emt 0:00:30]} 1-0